[Event "1st SOA-GM Festival 2024"]
[Site "Bhubaneswar"]
[Date "2024.02.01"]
[Round "3.15"]
[White "Shahil Dey"]
[Black "Barath Kalyan M"]
[Result "0-1"]
[WhiteElo "2363"]
[BlackElo "2040"]
[PlyCount "92"]
[EventDate "2024.02.01"]
[EventType "swiss"]
[EventCountry "IND"]
[TimeControl "5400+30"]

1. g3 {[%emt 0:01:24]} Nf6 {[%emt 0:00:37]} 2. Bg2 {[%emt 0:00:06]} g6 {[%emt 0:00:13]} 3. e4 {[%emt 0:00:04]} d6 {[%emt 0:00:32]} 4. Ne2 {[%emt 0:00:06]} Bg7 {[%emt 0:00:37]} 5. O-O {[%emt 0:00:56]} O-O {[%emt 0:00:06]} 6. d4 {[%emt 0:00:05]} e5 {[%emt 0:00:27]} 7. Nbc3 {[%emt 0:00:50]} c6 {[%emt 0:01:26]} 8. h3 {[%emt 0:00:50]} b5 {[%emt 0:02:20]} 9. a3 {[%emt 0:00:29]} a5 {[%emt 0:01:42]} 10. Be3 {[%emt 0:00:25]} Nbd7 {[%emt 0:02:42]} 11. dxe5 {[%emt 0:19:00]} dxe5 {[%emt 0:02:56]} 12. Qd6 {[%emt 0:02:07]} Ra6 {[%emt 0:06:35]} 13. f4 {[%emt 0:10:12]} Re8 {[%emt 0:05:02]} 14. f5 {[%emt 0:02:03]} Bf8 {[%emt 0:03:22]} 15. Qd2 {[%emt 0:01:33]} Qc7 {[%emt 0:01:26]} 16. g4 {[%emt 0:00:57]} b4 {[%emt 0:04:22]} 17. Na4 {[%emt 0:02:52]} c5 {[%emt 0:02:11]} 18. Ng3 {[%emt 0:00:13]} Rd6 {[%emt 0:11:16]} 19. Qf2 {[%emt 0:00:10]} Ba6 {[%emt 0:00:08]} 20. Rfe1 {[%emt 0:04:41]} Rc8 {[%emt 0:02:50]} 21. g5 {[%emt 0:01:45]} Ne8 {[%emt 0:00:25]} 22. Bf1 {[%emt 0:01:53]} c4 {[%emt 0:00:52]} 23. axb4 {[%emt 0:00:12]} axb4 {[%emt 0:00:06]} 24. Be2 {[%emt 0:02:53]} c3 {[%emt 0:08:39]} 25. b3 {[%emt 0:04:21]} Bxe2 {[%emt 0:01:41]} 26. Rxe2 {[%emt 0:00:06]} Ra6 {[%emt 0:01:40]} 27. Rf1 {[%emt 0:00:33]} Nc5 {[%emt 0:03:15]} 28. Nxc5 {[%emt 0:03:26]} Bxc5 {[%emt 0:03:28]} 29. Rd1 {[%emt 0:03:35]} Nd6 {[%emt 0:01:24]} 30. Rd5 {[%emt 0:00:34]} Ra5 {[%emt 0:01:41]} 31. Bxc5 {[%emt 0:09:23]} Rxc5 {[%emt 0:00:06]} 32. fxg6 {[%emt 0:06:49]} hxg6 {[%emt 0:01:07]} 33. h4 {[%emt 0:01:06]} Nb5 {[%emt 0:01:44]} 34. Re1 {[%emt 0:08:10]} Nd4 {[%emt 0:00:36]} 35. Rf1 {[%emt 0:00:54]} Qe7 {[%emt 0:05:02]} 36. Ra1 {[%emt 0:04:24]} Qe6 {[%emt 0:02:11]} 37. Rxc5 {[%emt 0:00:56]} Rxc5 {[%emt 0:00:05]} 38. Ra7 {[%emt 0:00:25]} Rc8 {[%emt 0:00:53]} 39. h5 {[%emt 0:06:15]} Nxb3 {[%emt 0:09:03]} 40. Rb7 {[%emt 0:02:04]} Nd4 {[%emt 0:00:33]} 41. Rxb4 {[%emt 0:00:14]} Qg4 {[%emt 0:02:04]} 42. hxg6 {[%emt 0:01:01]} fxg6 {[%emt 0:00:15]} 43. Rb6 {[%emt 0:00:26]} Qxg5 {[%emt 0:04:29]} 44. Qg2 {[%emt 0:01:28]} Rf8 {[%emt 0:01:04]} 45. Nf1 {[%emt 0:00:05]} Ne2+ {[%emt 0:01:07]} 46. Kh2 {[%emt 0:00:34]} Qh4+ {[%emt 0:00:13]} 0-1

[Event "1st SOA-GM Festival 2024"]
[Site "Bhubaneswar"]
[Date "2024.02.01"]
[Round "3.16"]
[White "Rajesh, V A V"]
[Black "Sharnarthi Viresh"]
[Result "1-0"]
[WhiteElo "2331"]
[BlackElo "1926"]
[PlyCount "173"]
[EventDate "2024.02.01"]
[EventType "swiss"]
[EventCountry "IND"]
[TimeControl "5400+30"]

1. d4 {[%emt 0:00:09]} Nf6 {[%emt 0:00:03]} 2. c4 {[%emt 0:00:05]} g6 {[%emt 0:00:08]} 3. Nc3 {[%emt 0:00:03]} Bg7 {[%emt 0:00:04]} 4. e4 {[%emt 0:00:05]} d6 {[%emt 0:00:03]} 5. Be2 {[%emt 0:00:16]} O-O {[%emt 0:00:09]} 6. Be3 {[%emt 0:00:28]} Na6 {[%emt 0:07:05]} 7. Nf3 {[%emt 0:01:25]} c5 {[%emt 0:00:28]} 8. d5 {[%emt 0:00:43]} e6 {[%emt 0:01:00]} 9. Nd2 {[%emt 0:02:40]} Nc7 {[%emt 0:01:26]} 10. a4 {[%emt 0:02:20]} exd5 {[%emt 0:04:50]} 11. exd5 {[%emt 0:03:47]} Na6 {[%emt 0:06:05]} 12. O-O {[%emt 0:02:25]} Nb4 {[%emt 0:01:19]} 13. Bg5 {[%emt 0:02:48]} h6 {[%emt 0:02:56]} 14. Bf4 {[%emt 0:00:50]} a6 {[%emt 0:00:53]} 15. Na2 {[%emt 0:08:05]} a5 {[%emt 0:01:55]} 16. Nc3 {[%emt 0:01:13]} Bf5 {[%emt 0:00:34]} 17. Rc1 {[%emt 0:02:44]} Re8 {[%emt 0:00:06]} 18. Ndb1 {[%emt 0:04:39]} Ne4 {[%emt 0:01:12]} 19. Be3 {[%emt 0:01:13]} Qh4 {[%emt 0:02:03]} 20. Nxe4 {[%emt 0:04:45]} Rxe4 {[%emt 0:00:56]} 21. Nc3 {[%emt 0:01:53]} Rxe3 {[%emt 0:00:09]} 22. fxe3 {[%emt 0:00:04]} Re8 {[%emt 0:00:07]} 23. Rf3 {[%emt 0:02:23]} h5 {[%emt 0:02:14]} 24. Qd2 {[%emt 0:07:59]} Bg4 {[%emt 0:02:04]} 25. Rf4 {[%emt 0:14:04]} Bh6 {[%emt 0:00:11]} 26. Rcf1 {[%emt 0:05:50]} Bxf4 {[%emt 0:02:05]} 27. Rxf4 {[%emt 0:00:42]} Qe7 {[%emt 0:00:09]} 28. Bxg4 {[%emt 0:03:32]} hxg4 {[%emt 0:00:02]} 29. e4 {[%emt 0:01:02]} g3 {[%emt 0:11:23]} 30. hxg3 {[%emt 0:02:54]} Qg5 {[%emt 0:03:13]} 31. Qe3 {[%emt 0:06:49]} Re7 {[%emt 0:00:04]} 32. Nb5 {[%emt 0:01:16]} Qe5 {[%emt 0:10:24]} 33. Rf2 {[%emt 0:06:30]} Rd7 {[%emt 0:16:25]} 34. Re2 {[%emt 0:01:06]} f6 {[%emt 0:00:31]} 35. Qh6 {[%emt 0:05:05]} Qxg3 {[%emt 0:02:36]} 36. Re3 {[%emt 0:00:13]} Qg5 {[%emt 0:00:07]} 37. Qxg5 {[%emt 0:00:41]} fxg5 {[%emt 0:00:02]} 38. Kf2 {[%emt 0:00:11]} Kg7 {[%emt 0:02:50]} 39. Rf3 {[%emt 0:03:06]} g4 {[%emt 0:04:33]} 40. Re3 {[%emt 0:00:06]} Nc2 {[%emt 0:00:29]} 41. Rg3 {[%emt 0:01:59]} Kf6 {[%emt 0:12:45]} 42. Rxg4 {[%emt 0:00:21]} Nb4 {[%emt 0:01:37]} 43. Ke3 {[%emt 0:00:23]} Nc2+ {[%emt 0:00:20]} 44. Kf4 {[%emt 0:01:24]} Ne1 {[%emt 0:02:24]} 45. Rg3 {[%emt 0:00:26]} Rd8 {[%emt 0:01:29]} 46. Ke3 {[%emt 0:01:27]} Nc2+ {[%emt 0:00:05]} 47. Kd2 {[%emt 0:00:30]} Nb4 {[%emt 0:00:07]} 48. Rg4 {[%emt 0:00:42]} Rd7 {[%emt 0:00:44]} 49. Ke2 {[%emt 0:00:36]} Nc2 {[%emt 0:00:13]} 50. Kf2 {[%emt 0:00:38]} Rd8 {[%emt 0:00:11]} 51. Rg3 {[%emt 0:00:09]} Nb4 {[%emt 0:00:48]} 52. Ke3 {[%emt 0:00:21]} Nc2+ {[%emt 0:01:12]} 53. Kd3 {[%emt 0:01:08]} Nb4+ {[%emt 0:00:02]} 54. Kd2 {[%emt 0:00:13]} Rd7 {[%emt 0:00:15]} 55. Ke3 {[%emt 0:00:52]} Nc2+ {[%emt 0:00:01]} 56. Kf2 {[%emt 0:00:18]} Nb4 {[%emt 0:00:09]} 57. b3 {[%emt 0:00:11]} Rd8 {[%emt 0:01:49]} 58. Ke3 {[%emt 0:00:28]} Nc2+ {[%emt 0:00:34]} 59. Kf4 {[%emt 0:00:45]} Nb4 {[%emt 0:00:06]} 60. Rf3 {[%emt 0:00:18]} Kg7 {[%emt 0:02:10]} 61. Ke3 {[%emt 0:00:24]} Nc2+ {[%emt 0:00:24]} 62. Kd2 {[%emt 0:00:05]} Nb4 {[%emt 0:00:04]} 63. Nc7 {[%emt 0:00:04]} Rc8 {[%emt 0:01:06]} 64. Ne6+ {[%emt 0:00:06]} Kg8 {[%emt 0:00:06]} 65. Rf6 {[%emt 0:00:12]} b6 {[%emt 0:00:18]} 66. g4 {[%emt 0:00:21]} Re8 {[%emt 0:00:33]} 67. Rxg6+ {[%emt 0:00:38]} Kf7 {[%emt 0:00:06]} 68. Rh6 {[%emt 0:00:05]} Rg8 {[%emt 0:00:49]} 69. g5 {[%emt 0:00:10]} Na6 {[%emt 0:00:22]} 70. Ke3 {[%emt 0:00:13]} Nb4 {[%emt 0:00:07]} 71. Kf4 {[%emt 0:01:37]} Nc2 {[%emt 0:00:08]} 72. e5 {[%emt 0:00:21]} dxe5+ {[%emt 0:00:07]} 73. Kxe5 {[%emt 0:00:03]} Nd4 {[%emt 0:00:06]} 74. Nxd4 {[%emt 0:00:21]} cxd4 {[%emt 0:00:03]} 75. Kxd4 {[%emt 0:00:07]} Rxg5 {[%emt 0:00:07]} 76. Rxb6 {[%emt 0:00:09]} Ke7 {[%emt 0:00:04]} 77. Rb7+ {[%emt 0:00:13]} Kd8 {[%emt 0:00:10]} 78. c5 {[%emt 0:00:06]} Rg4+ {[%emt 0:00:05]} 79. Kc3 {[%emt 0:00:04]} Kc8 {[%emt 0:00:09]} 80. c6 {[%emt 0:00:04]} Re4 {[%emt 0:00:35]} 81. d6 {[%emt 0:00:04]} Rb4 {[%emt 0:00:23]} 82. Rxb4 {[%emt 0:00:30]} axb4+ {[%emt 0:00:07]} 83. Kxb4 {[%emt 0:00:03]} Kd8 {[%emt 0:00:03]} 84. Kc5 {[%emt 0:00:04]} Kc8 {[%emt 0:00:02]} 85. Kb6 {[%emt 0:00:07]} Kb8 {[%emt 0:00:04]} 86. d7 {[%emt 0:00:05]} Ka8 {[%emt 0:00:02]} 87. d8=Q# {[%emt 0:00:07]} 1-0

[Event "1st SOA-GM Festival 2024"]
[Site "Bhubaneswar"]
[Date "2024.02.01"]
[Round "3.17"]
[White "Das, Sayantan"]
[Black "Sambarta Banerjee"]
[Result "1-0"]
[WhiteElo "2514"]
[BlackElo "2064"]
[PlyCount "59"]
[EventDate "2024.02.01"]
[EventType "swiss"]
[EventCountry "IND"]
[TimeControl "5400+30"]

1. e4 {[%emt 0:02:05]} c6 {[%emt 0:02:18]} 2. d4 {[%emt 0:00:23]} d5 {[%emt 0:00:07]} 3. e5 {[%emt 0:00:13]} Bf5 {[%emt 0:00:11]} 4. h4 {[%emt 0:00:45]} h5 {[%emt 0:00:10]} 5. c4 {[%emt 0:01:27]} e6 {[%emt 0:00:10]} 6. Nc3 {[%emt 0:00:13]} dxc4 {[%emt 0:01:13]} 7. Bxc4 {[%emt 0:00:54]} Nd7 {[%emt 0:00:12]} 8. a4 {[%emt 0:05:20]} Nb6 {[%emt 0:05:50]} 9. Be2 {[%emt 0:00:53]} Bg6 {[%emt 0:10:58]} 10. Nh3 {[%emt 0:01:49]} Nd5 {[%emt 0:13:01]} 11. Nxd5 {[%emt 0:03:08]} Qxd5 {[%emt 0:00:46]} 12. Nf4 {[%emt 0:01:15]} Qe4 {[%emt 0:03:21]} 13. Be3 {[%emt 0:11:18]} Bb4+ {[%emt 0:07:35]} 14. Kf1 {[%emt 0:00:58]} Qc2 {[%emt 0:00:22]} 15. Bxh5 {[%emt 0:02:45]} Qxd1+ {[%emt 0:03:39]} 16. Bxd1 {[%emt 0:00:43]} Ne7 {[%emt 0:00:16]} 17. a5 {[%emt 0:05:05]} O-O-O {[%emt 0:06:13]} 18. Nxg6 {[%emt 0:09:53]} Nxg6 {[%emt 0:01:04]} 19. h5 {[%emt 0:00:10]} c5 {[%emt 0:13:33]} 20. dxc5 {[%emt 0:08:52]} Nxe5 {[%emt 0:00:24]} 21. Be2 {[%emt 0:01:33]} a6 {[%emt 0:05:43]} 22. Ra4 {[%emt 0:12:13]} Nc6 {[%emt 0:00:42]} 23. Bf3 {[%emt 0:00:52]} Bxa5 {[%emt 0:08:24]} 24. Ke2 {[%emt 0:01:15]} Bc7 {[%emt 0:00:48]} 25. Bxc6 {[%emt 0:00:26]} bxc6 {[%emt 0:00:05]} 26. Rxa6 {[%emt 0:00:06]} Kb7 {[%emt 0:00:20]} 27. Ra4 {[%emt 0:01:11]} Rd5 {[%emt 0:00:12]} 28. g4 {[%emt 0:00:56]} f5 {[%emt 0:03:35]} 29. Rha1 {[%emt 0:01:23]} fxg4 {[%emt 0:01:12]} 30. Rb4+ {[%emt 0:00:17]} 1-0

[Event "1st SOA-GM Festival 2024"]
[Site "Bhubaneswar"]
[Date "2024.02.01"]
[Round "3.18"]
[White "Vaibhav Jayant Raut"]
[Black "Savchenko, Boris"]
[Result "1/2-1/2"]
[WhiteElo "2052"]
[BlackElo "2489"]
[PlyCount "82"]
[EventDate "2024.02.01"]
[EventType "swiss"]
[EventCountry "IND"]
[TimeControl "5400+30"]

1. c4 {[%emt 0:00:16]} e5 {[%emt 0:00:52]} 2. g3 {[%emt 0:00:42]} Bc5 3. Bg2 {[%emt 0:02:07]} Nc6 {[%emt 0:00:23]} 4. Nc3 {[%emt 0:00:22]} a6 {[%emt 0:00:08]} 5. e3 {[%emt 0:01:17]} d6 {[%emt 0:00:13]} 6. h3 {[%emt 0:04:30]} f5 {[%emt 0:01:07]} 7. Nge2 {[%emt 0:02:16]} Nf6 {[%emt 0:01:06]} 8. d4 {[%emt 0:00:58]} Ba7 {[%emt 0:00:18]} 9. dxe5 {[%emt 0:05:24]} dxe5 {[%emt 0:01:09]} 10. Bxc6+ {[%emt 0:18:29]} bxc6 {[%emt 0:00:10]} 11. Qxd8+ {[%emt 0:00:03]} Kxd8 {[%emt 0:00:10]} 12. b3 {[%emt 0:00:02]} h5 {[%emt 0:00:09]} 13. Bb2 {[%emt 0:03:13]} h4 {[%emt 0:00:11]} 14. gxh4 {[%emt 0:05:31]} Ke7 {[%emt 0:00:35]} 15. Na4 {[%emt 0:07:22]} f4 {[%emt 0:00:12]} 16. exf4 {[%emt 0:06:26]} exf4 {[%emt 0:00:06]} 17. Nxf4 {[%emt 0:06:25]} Kf7 {[%emt 0:00:10]} 18. c5 {[%emt 0:07:52]} Rxh4 {[%emt 0:02:21]} 19. Nd3 {[%emt 0:00:15]} Bf5 {[%emt 0:02:42]} 20. Ne5+ {[%emt 0:02:44]} Kf8 {[%emt 0:00:38]} 21. O-O-O {[%emt 0:02:57]} Nd5 {[%emt 0:01:17]} 22. Nxc6 {[%emt 0:03:28]} Nf4 {[%emt 0:00:18]} 23. Nxa7 {[%emt 0:01:46]} Nd3+ {[%emt 0:01:12]} 24. Rxd3 {[%emt 0:10:56]} Bxd3 {[%emt 0:00:03]} 25. Nc6 {[%emt 0:00:17]} Be4 {[%emt 0:00:40]} 26. Ne5 {[%emt 0:01:15]} Bxh1 {[%emt 0:00:07]} 27. Ng6+ {[%emt 0:00:02]} Kf7 {[%emt 0:00:07]} 28. Nxh4 {[%emt 0:00:05]} g6 {[%emt 0:00:05]} 29. Be5 {[%emt 0:03:40]} g5 {[%emt 0:00:44]} 30. Nf5 {[%emt 0:00:35]} Ke6 {[%emt 0:00:10]} 31. Ng3 {[%emt 0:00:04]} Kxe5 {[%emt 0:00:07]} 32. Nxh1 {[%emt 0:00:06]} Kd4 {[%emt 0:00:12]} 33. Kd2 {[%emt 0:01:04]} Rh8 {[%emt 0:00:08]} 34. Ng3 {[%emt 0:00:56]} Rxh3 {[%emt 0:00:07]} 35. Nc3 {[%emt 0:00:45]} Kxc5 {[%emt 0:00:12]} 36. Nce4+ {[%emt 0:01:39]} Kb4 {[%emt 0:00:09]} 37. Nxg5 {[%emt 0:00:30]} Rh2 {[%emt 0:00:06]} 38. N3e4 {[%emt 0:00:24]} Ka3 {[%emt 0:00:15]} 39. Ne6 {[%emt 0:00:23]} Kxa2 {[%emt 0:00:09]} 40. Nxc7 {[%emt 0:00:32]} Kxb3 {[%emt 0:00:07]} 41. Nxa6 {[%emt 0:00:09]} Rxf2+ {[%emt 0:00:05]} 1/2-1/2

[Event "1st SOA-GM Festival 2024"]
[Site "Bhubaneswar"]
[Date "2024.02.01"]
[Round "3.19"]
[White "Fedorov, Alexei"]
[Black "Mahindrakar Indrajeet"]
[Result "1/2-1/2"]
[WhiteElo "2457"]
[BlackElo "2039"]
[PlyCount "134"]
[EventDate "2024.02.01"]
[EventType "swiss"]
[EventCountry "IND"]
[TimeControl "5400+30"]

1. e4 {[%emt 0:00:08]} c5 {[%emt 0:00:31]} 2. Nf3 {[%emt 0:00:30]} e6 {[%emt 0:00:26]} 3. d4 {[%emt 0:00:14]} cxd4 {[%emt 0:00:10]} 4. Nxd4 {[%emt 0:00:05]} a6 {[%emt 0:00:12]} 5. c4 {[%emt 0:00:25]} Nf6 {[%emt 0:03:20]} 6. Nc3 {[%emt 0:00:09]} Qc7 {[%emt 0:04:58]} 7. a3 {[%emt 0:00:58]} d6 {[%emt 0:07:04]} 8. Be2 {[%emt 0:03:01]} g6 {[%emt 0:01:25]} 9. O-O {[%emt 0:06:37]} Bg7 {[%emt 0:00:37]} 10. Be3 {[%emt 0:00:23]} O-O {[%emt 0:00:57]} 11. Qd2 {[%emt 0:02:46]} Nc6 {[%emt 0:01:35]} 12. Nxc6 {[%emt 0:01:26]} bxc6 {[%emt 0:14:30]} 13. Rfd1 {[%emt 0:03:54]} Ne8 {[%emt 0:12:46]} 14. b4 {[%emt 0:04:31]} Bb7 {[%emt 0:05:17]} 15. Rac1 {[%emt 0:00:55]} Rd8 {[%emt 0:12:48]} 16. Na4 {[%emt 0:05:27]} Qe7 {[%emt 0:00:35]} 17. Nc5 {[%emt 0:01:27]} Bc8 {[%emt 0:01:15]} 18. Nb3 {[%emt 0:00:50]} Bb7 {[%emt 0:00:00]} 19. Nc5 {[%emt 0:00:10]} Bc8 {[%emt 0:01:00]} 20. Nb3 {[%emt 1:06:34]} Qb7 {[%emt 0:18:12]} 21. Na5 {[%emt 0:00:00]} Qc7 {[%emt 0:00:12]} 22. b5 {[%emt 0:00:00]} c5 {[%emt 0:01:24]} 23. Rb1 {[%emt 0:00:00]} Bd7 {[%emt 0:05:42]} 24. Rbc1 {[%emt 0:00:00]} Bc8 {[%emt 0:00:00]} 25. Rb1 {[%emt 0:00:00]} Bd7 {[%emt 0:01:00]} 26. bxa6 {[%emt 0:00:00]} Qa7 {[%emt 0:02:39]} 27. Nb7 {[%emt 0:00:00]} Rc8 {[%emt 0:01:34]} 28. Nxd6 {[%emt 0:00:00]} Nxd6 {[%emt 0:00:07]} 29. Qxd6 {[%emt 0:00:00]} Ba4 {[%emt 0:00:31]} 30. Rd2 {[%emt 0:00:00]} Rc6 {[%emt 0:00:08]} 31. Rb7 {[%emt 0:00:00]} Qxa6 {[%emt 0:00:48]} 32. Qe7 {[%emt 0:00:00]} Rcc8 {[%emt 0:04:00]} 33. Ra7 {[%emt 0:00:00]} Qc6 {[%emt 0:00:01]} 34. Rd6 {[%emt 0:00:00]} Qxe4 {[%emt 0:01:01]} 35. Rxa4 {[%emt 0:00:00]} Bd4 {[%emt 0:00:34]} 36. Raa6 {[%emt 0:00:00]} Rb8 {[%emt 0:00:38]} 37. Rab6 {[%emt 0:00:00]} Bxe3 {[%emt 0:00:17]} 38. Rxb8 {[%emt 0:00:00]} Rxb8 {[%emt 0:00:29]} 39. Rd8+ {[%emt 0:00:00]} Rxd8 {[%emt 0:00:14]} 40. Qxd8+ {[%emt 0:00:00]} Kg7 {[%emt 0:00:03]} 41. fxe3 {[%emt 0:00:00]} Qxe3+ {[%emt 0:00:01]} 42. Kf1 {[%emt 0:00:00]} Qxa3 {[%emt 0:01:25]} 43. g3 {[%emt 0:00:00]} Qa1+ {[%emt 0:00:36]} 44. Kg2 {[%emt 0:00:00]} Qe5 {[%emt 0:00:08]} 45. Qd3 {[%emt 0:00:00]} h6 {[%emt 0:00:51]} 46. Kf2 {[%emt 0:00:00]} Kf8 {[%emt 0:00:34]} 47. Qe3 {[%emt 0:00:00]} Qf6+ {[%emt 0:00:48]} 48. Kg2 {[%emt 0:00:00]} Qg5 {[%emt 0:00:23]} 49. Qxg5 {[%emt 0:00:00]} hxg5 {[%emt 0:00:01]} 50. g4 {[%emt 0:00:00]} Ke7 {[%emt 0:00:18]} 51. Bd1 {[%emt 0:00:00]} f5 {[%emt 0:01:05]} 52. Ba4 {[%emt 0:00:00]} e5 {[%emt 0:00:36]} 53. Kf2 {[%emt 0:00:03]} Ke6 {[%emt 0:00:33]} 54. Be8 {[%emt 0:00:19]} Kf6 {[%emt 0:00:04]} 55. Kg2 {[%emt 0:00:00]} Ke7 {[%emt 0:00:53]} 56. Kf2 {[%emt 0:01:00]} Kf6 {[%emt 0:00:07]} 57. Kg2 {[%emt 0:00:00]} Ke7 {[%emt 0:00:53]} 58. Kf2 {[%emt 0:01:00]} Kf6 {[%emt 0:00:07]} 59. h3 {[%emt 0:02:02]} Kg7 {[%emt 0:00:23]} 60. Kg2 {[%emt 0:00:00]} Kf6 {[%emt 0:00:37]} 61. Kf2 {[%emt 0:01:00]} Kg7 {[%emt 0:00:23]} 62. Ke3 {[%emt 0:00:59]} Kf6 {[%emt 0:00:07]} 63. Bd7 {[%emt 0:02:45]} e4 {[%emt 0:00:18]} 64. Be8 {[%emt 0:00:09]} Kg7 {[%emt 0:00:40]} 65. Kf2 {[%emt 0:02:12]} Kf6 {[%emt 0:00:24]} 66. Kg2 {[%emt 0:00:46]} Kg7 {[%emt 0:01:01]} 67. Kf2 {[%emt 0:03:14]} Kf6 {[%emt 0:00:08]} 1/2-1/2

[Event "1st SOA-GM Festival 2024"]
[Site "Bhubaneswar"]
[Date "2024.02.01"]
[Round "3.20"]
[White "Sammed Jaykumar, Shete"]
[Black "Patil Priyanshu"]
[Result "1/2-1/2"]
[WhiteElo "2441"]
[BlackElo "2022"]
[PlyCount "66"]
[EventDate "2024.02.01"]
[EventType "swiss"]
[EventCountry "IND"]
[TimeControl "5400+30"]

1. d4 {[%emt 0:00:24]} d5 {[%emt 0:00:13]} 2. c4 {[%emt 0:00:13]} e6 {[%emt 0:00:02]} 3. Nf3 {[%emt 0:00:16]} a6 {[%emt 0:00:01]} 4. Nc3 {[%emt 0:00:32]} dxc4 {[%emt 0:00:13]} 5. a4 {[%emt 0:01:09]} Nc6 {[%emt 0:00:02]} 6. e4 {[%emt 0:01:54]} Na5 {[%emt 0:05:55]} 7. Be3 {[%emt 0:00:10]} Nf6 {[%emt 0:02:41]} 8. Qc2 {[%emt 0:07:40]} Bb4 {[%emt 0:12:50]} 9. Be2 {[%emt 0:05:45]} b5 {[%emt 0:07:07]} 10. axb5 axb5 {[%emt 0:00:02]} 11. O-O {[%emt 0:05:07]} Bxc3 {[%emt 0:07:13]} 12. bxc3 {[%emt 0:03:10]} Bb7 {[%emt 0:02:16]} 13. Nd2 {[%emt 0:02:16]} Nb3 {[%emt 0:09:01]} 14. Nxb3 {[%emt 0:11:57]} Bxe4 {[%emt 0:00:06]} 15. Qb2 {[%emt 0:00:23]} cxb3 {[%emt 0:00:06]} 16. Bxb5+ {[%emt 0:00:09]} c6 {[%emt 0:00:06]} 17. Ba4 {[%emt 0:00:43]} O-O {[%emt 0:06:15]} 18. Qxb3 {[%emt 0:01:09]} Qd6 {[%emt 0:05:29]} 19. f3 {[%emt 0:00:56]} Rfb8 {[%emt 0:00:50]} 20. Qd1 {[%emt 0:03:38]} Nd5 {[%emt 0:00:59]} 21. Bd2 {[%emt 0:03:23]} Bd3 {[%emt 0:01:36]} 22. Rf2 {[%emt 0:01:56]} Nb6 {[%emt 0:02:16]} 23. g3 {[%emt 0:10:53]} Nxa4 {[%emt 0:05:32]} 24. Rxa4 {[%emt 0:01:03]} Rxa4 {[%emt 0:01:15]} 25. Qxa4 {[%emt 0:00:16]} Qd5 {[%emt 0:02:28]} 26. Kg2 {[%emt 0:02:04]} h6 {[%emt 0:03:18]} 27. Qa7 {[%emt 0:00:47]} Rb2 {[%emt 0:02:10]} 28. Qc7 {[%emt 0:11:29]} Qa2 {[%emt 0:03:48]} 29. Qf4 {[%emt 0:00:06]} Qb1 {[%emt 0:00:26]} 30. Qe3 {[%emt 0:03:33]} Ra2 {[%emt 0:04:54]} 31. Qe1 {[%emt 0:01:46]} Qb3 {[%emt 0:00:13]} 32. g4 {[%emt 0:01:34]} Qa4 {[%emt 0:01:40]} 33. Qe3 {[%emt 0:01:50]} Qb5 {[%emt 0:00:00]} 1/2-1/2

[Event "1st SOA-GM Festival 2024"]
[Site "Bhubaneswar"]
[Date "2024.02.01"]
[Round "4.1"]
[White "Tahbaz, Arash"]
[Black "Goutham Krishna H"]
[Result "1/2-1/2"]
[WhiteElo "2425"]
[BlackElo "2288"]
[PlyCount "168"]
[EventDate "2024.02.01"]
[EventType "swiss"]
[EventCountry "IND"]
[TimeControl "5400+30"]

1. Nf3 {[%emt 0:00:13]} Nf6 {[%emt 0:00:07]} 2. g3 {[%emt 0:00:09]} g6 {[%emt 0:00:05]} 3. Bg2 {[%emt 0:00:04]} Bg7 {[%emt 0:00:04]} 4. O-O {[%emt 0:00:06]} O-O {[%emt 0:00:10]} 5. c4 {[%emt 0:00:05]} d6 {[%emt 1:32:34]} 6. Nc3 {[%emt 0:00:06]} e5 {[%emt 0:00:00]} 7. d3 {[%emt 0:00:05]} a5 {[%emt 0:00:00]} 8. a3 {[%emt 0:01:05]} c6 {[%emt 0:00:00]} 9. Rb1 {[%emt 0:00:41]} h6 {[%emt 0:00:00]} 10. b4 {[%emt 0:01:58]} axb4 {[%emt 0:00:00]} 11. axb4 {[%emt 0:00:05]} Be6 {[%emt 0:00:00]} 12. e4 {[%emt 0:09:47]} Nbd7 {[%emt 0:00:00]} 13. Bb2 {[%emt 0:03:28]} Nh7 {[%emt 0:00:00]} 14. Qc2 {[%emt 0:06:56]} Ng5 {[%emt 0:00:00]} 15. Nd2 {[%emt 0:14:37]} Bh3 {[%emt 0:00:00]} 16. Bxh3 {[%emt 0:01:36]} Nxh3+ {[%emt 0:00:00]} 17. Kg2 {[%emt 0:00:10]} Ng5 {[%emt 0:00:00]} 18. Ne2 {[%emt 0:01:21]} Ne6 {[%emt 0:00:00]} 19. Nf3 {[%emt 0:03:26]} f5 {[%emt 0:00:00]} 20. d4 {[%emt 0:01:18]} f4 {[%emt 0:00:00]} 21. c5 {[%emt 0:14:42]} g5 {[%emt 0:00:00]} 22. Qc4 {[%emt 0:13:26]} Qe8 {[%emt 0:00:00]} 23. g4 {[%emt 0:00:48]} d5 {[%emt 0:00:00]} 24. exd5 {[%emt 0:01:12]} cxd5 {[%emt 0:00:00]} 25. Qxd5 {[%emt 0:00:11]} Nf6 {[%emt 0:00:00]} 26. Qxe5 {[%emt 0:00:33]} Nxg4 {[%emt 0:00:00]} 27. Qd5 {[%emt 0:00:45]} Nf6 {[%emt 0:00:00]} 28. Qb3 {[%emt 0:06:44]} Kh8 {[%emt 0:00:00]} 29. Ne5 {[%emt 0:00:57]} Rd8 {[%emt 0:00:00]} 30. h3 {[%emt 0:01:52]} f3+ {[%emt 0:12:30]} 31. Qxf3 {[%emt 0:01:33]} Nd5 {[%emt 0:00:00]} 32. Qg3 {[%emt 0:02:29]} Nef4+ {[%emt 0:00:00]} 33. Nxf4 {[%emt 0:00:04]} Nxf4+ {[%emt 0:00:00]} 34. Kh2 {[%emt 0:00:25]} Ne2 {[%emt 0:00:00]} 35. Qe3 {[%emt 0:05:20]} Nxd4 {[%emt 0:00:00]} 36. Bxd4 {[%emt 0:04:04]} Rxd4 {[%emt 0:00:00]} 37. Rbe1 {[%emt 0:00:45]} Rxb4 {[%emt 0:00:00]} 38. Kg2 {[%emt 0:00:37]} Rbf4 {[%emt 0:00:00]} 39. Re2 {[%emt 0:01:22]} R4f5 {[%emt 0:00:00]} 40. Nd3 {[%emt 0:02:36]} Qd7 {[%emt 0:00:00]} 41. f3 {[%emt 0:01:59]} Rd5 {[%emt 0:00:00]} 42. Nf2 {[%emt 0:00:01]} Rc8 {[%emt 0:00:00]} 43. Rc1 {[%emt 0:01:07]} Qc6 {[%emt 0:00:00]} 44. Ne4 {[%emt 0:00:28]} Rf8 {[%emt 0:00:00]} 45. Rb1 {[%emt 0:00:19]} Rdf5 {[%emt 0:00:00]} 46. Rb6 {[%emt 0:00:39]} Qd5 {[%emt 0:00:00]} 47. Rd6 {[%emt 0:01:14]} Qf7 {[%emt 0:00:00]} 48. Rf2 {[%emt 0:00:11]} Re5 {[%emt 0:00:00]} 49. Qd3 {[%emt 0:00:25]} Qf5 {[%emt 0:00:00]} 50. Rd8 {[%emt 0:00:09]} Rxd8 {[%emt 0:00:00]} 51. Qxd8+ {[%emt 0:00:02]} Kh7 {[%emt 0:00:00]} 52. Qd3 {[%emt 0:00:45]} h5 {[%emt 0:00:00]} 53. Nxg5+ {[%emt 0:00:08]} Kg6 {[%emt 0:00:00]} 54. Qxf5+ {[%emt 0:01:36]} Kxf5 {[%emt 0:00:00]} 55. Ne4 {[%emt 0:00:07]} Kf4 {[%emt 0:00:00]} 56. Rd2 {[%emt 0:00:05]} Re7 {[%emt 0:00:00]} 57. Kf2 {[%emt 0:01:02]} Be5 {[%emt 0:00:32]} 58. Rd8 {[%emt 0:00:32]} Rf7 {[%emt 0:00:28]} 59. Rd5 {[%emt 0:00:56]} Rg7 {[%emt 0:01:16]} 60. h4 {[%emt 0:00:02]} Kf5 {[%emt 0:00:29]} 61. Rd8 {[%emt 0:00:32]} Bf4 {[%emt 0:00:33]} 62. Rh8 {[%emt 0:00:45]} Kg6 {[%emt 0:01:06]} 63. Rf8 {[%emt 0:00:04]} Rf7 {[%emt 0:00:01]} 64. Rg8+ {[%emt 0:00:28]} Rg7 {[%emt 0:00:03]} 65. Rf8 {[%emt 0:00:18]} Rf7 {[%emt 0:00:01]} 66. Rd8 {[%emt 0:00:32]} Bc7 {[%emt 0:00:45]} 67. Rd5 {[%emt 0:00:14]} Rf5 {[%emt 0:00:01]} 68. Rd7 {[%emt 0:00:14]} Rf7 {[%emt 0:00:00]} 69. Rd5 {[%emt 0:00:19]} Rf5 {[%emt 0:00:14]} 70. Rd3 {[%emt 0:00:18]} Rf4 {[%emt 0:00:29]} 71. Rb3 {[%emt 0:01:39]} Rxh4 {[%emt 0:00:37]} 72. Rxb7 {[%emt 0:00:04]} Bf4 {[%emt 0:00:04]} 73. Rb6+ {[%emt 0:00:40]} Kf5 {[%emt 0:00:02]} 74. Rf6+ {[%emt 0:01:08]} Ke5 {[%emt 0:00:02]} 75. Ke2 {[%emt 0:00:45]} Kd4 {[%emt 0:00:23]} 76. Kf2 {[%emt 0:00:30]} Ke5 {[%emt 0:00:38]} 77. Rf7 {[%emt 0:00:30]} Rh2+ {[%emt 0:00:21]} 78. Kf1 {[%emt 0:00:18]} Ra2 {[%emt 0:00:30]} 79. c6 {[%emt 0:00:15]} Rc2 {[%emt 0:00:20]} 80. c7 {[%emt 0:00:06]} h4 {[%emt 0:00:05]} 81. Nd6 {[%emt 0:01:20]} Kxd6 {[%emt 0:00:45]} 82. Rxf4 {[%emt 0:00:16]} h3 {[%emt 0:00:09]} 83. Rh4 {[%emt 0:00:17]} Kxc7 {[%emt 0:00:04]} 84. Rxh3 {[%emt 0:00:06]} Kd6 {[%emt 0:00:05]} 1/2-1/2